fUST/lending_fUST_20240813
["ID","MTS","AMOUNT","RATE_DAILY","PERIOD"]
[334732739,1723518644527,-151.0,0.00013962,2]
[334732740,1723518644536,-151.0,0.00013962,2]
[334732741,1723518644546,-229.205572,0.00013962,2]
[334732742,1723518644555,-229.205572,0.00013962,2]
[334732743,1723518644565,-151.0,0.00013962,2]
[334732744,1723518644575,-500.0,0.00013971,2]
[334732745,1723518644585,-537.37606776,0.00013971,2]
[334732746,1723518644595,-860.89,0.00013971,2]
[334732747,1723518644605,-860.89,0.00013971,2]
[334732748,1723518644614,-860.89,0.00013971,2]
[334732749,1723518644624,-860.89,0.00013971,2]
[334732750,1723518644633,-860.89,0.00013971,2]
[334732751,1723518644643,-860.95512867,0.00013971,2]
[334732752,1723518644653,-555.83,0.00013972,2]
[334732753,1723518644663,-500.0,0.00013972,2]
[334732754,1723518644673,-500.0,0.00013972,2]
[334732755,1723518644683,-500.0,0.00013972,2]
[334732756,1723518644693,-714.28,0.00013972,2]
[334732758,1723518644702,-500.0,0.00013972,2]
[334732759,1723518644712,-500.0,0.00013972,2]
[334732760,1723518644722,-501.81780332,0.00013972,2]
[334732761,1723518644732,-500.0,0.00013972,2]
[334732762,1723518644742,-500.0,0.00013972,2]
[334732763,1723518644752,-500.0,0.00013972,2]
[334732764,1723518644762,-500.0,0.00013972,2]
[334732765,1723518644772,-500.0,0.00013972,2]
[334732766,1723518644781,-798.52,0.00013972,2]
[334732767,1723518644791,-506.63667381,0.00013972,2]
[334732768,1723518644801,-518.82,0.00013972,2]
[334732769,1723518644810,-500.0,0.00013972,2]
[334732770,1723518644820,-506.10342775,0.00013972,2]
[334732771,1723518644829,-500.0,0.00013972,2]
[334732772,1723518644839,-171.698165,0.00013972,2]
[334732773,1723518644848,-500.0,0.00013972,2]
[334732774,1723518644857,-500.0,0.00013972,2]
[334732775,1723518644867,-411.76147416,0.00013972,2]
[334732776,1723518644877,-509.33646994,0.00013972,2]
[334732777,1723518644887,-500.0,0.00013972,2]
[334732778,1723518644897,-151.0,0.00013972,2]
[334732779,1723518644907,-500.0,0.00013972,2]
[334732780,1723518644918,-151.0,0.00013972,2]
[334732781,1723518644928,-509.58927145,0.00013972,2]
[334732782,1723518644938,-500.0,0.00013972,2]
[334732784,1723518644948,-500.0,0.00013972,2]
[334732785,1723518644957,-500.0,0.00013972,2]
[334732786,1723518644984,-500.0,0.00013972,2]
[334732787,1723518644994,-500.0,0.00013972,2]
[334732788,1723518645003,-619.46,0.00013972,2]
[334732789,1723518645012,-568.01,0.00013972,2]
[334732790,1723518645022,-500.0,0.00013972,2]
[334732791,1723518645032,-564.49,0.00013972,2]
[334732792,1723518645042,-508.37097972,0.00013972,2]
[334732793,1723518645052,-500.0,0.00013972,2]
[334732795,1723518645062,-500.0,0.00013972,2]
[334732797,1723518645072,-504.93221974,0.00013972,2]
[334732799,1723518645083,-500.0,0.00013972,2]
[334732801,1723518645093,-500.0,0.00013972,2]
[334732803,1723518645102,-507.85,0.00013972,2]
[334732805,1723518645112,-500.0,0.00013972,2]
[334732806,1723518645121,-484.65310663,0.00013972,2]
[334732807,1723518645131,-1705.04,0.00013972,2]
[334732808,1723518645140,-497.95581423,0.00013972,2]
[334732809,1723518645151,-507.1918941,0.00013972,2]
[334732810,1723518645161,-500.0,0.00013972,2]
[334732811,1723518645173,-500.0,0.00013972,2]
[334732812,1723518645183,-579.41162,0.00013972,2]
[334732813,1723518645193,-506.0863685,0.00013972,2]
[334732814,1723518645202,-503.73544608,0.00013972,2]
[334732815,1723518645213,-500.0,0.00013972,2]
[334732816,1723518645223,-854.94,0.00013972,2]
[334732817,1723518645233,-500.0,0.00013972,2]
[334732818,1723518645243,-500.0,0.00013972,2]
[334732819,1723518645253,-500.0,0.00013972,2]
[334732820,1723518645264,-500.0,0.00013972,2]
[334732821,1723518645273,-505.99948325,0.00013972,2]
[334732822,1723518645283,-500.0,0.00013972,2]
[334732823,1723518645293,-152.703116,0.00013972,2]
[334732824,1723518645302,-608.07,0.00013972,2]
[334732825,1723518645311,-504.75071887,0.00013972,2]
[334732826,1723518645321,-500.0,0.00013972,2]
[334732827,1723518645330,-1301.79,0.00013972,2]
[334732828,1723518645340,-500.0,0.00013972,2]
[334732829,1723518645349,-500.0,0.00013972,2]
[334732830,1723518645359,-500.0,0.00013972,2]
[334732831,1723518645368,-509.77,0.00013972,2]
[334732832,1723518645378,-151.0,0.00013972,2]
[334732833,1723518645387,-500.0,0.00013972,2]
[334732834,1723518645396,-500.0,0.00013972,2]
[334732835,1723518645406,-287.283186,0.00013972,2]
[334732836,1723518645416,-500.0,0.00013972,2]
[334732837,1723518645426,-500.0,0.00013972,2]
[334732838,1723518645435,-500.0,0.00013972,2]
[334732839,1723518645445,-371.36827,0.00013972,2]
[334732840,1723518645454,-371.36827,0.00013972,2]
[334732841,1723518645464,-501.44520048,0.00013972,2]
[334732842,1723518645479,-500.0,0.00013972,2]
[334732843,1723518645497,-500.0,0.00013972,2]
[334732844,1723518645506,-151.0,0.00013972,2]
[334732845,1723518645515,-151.0,0.00013972,2]
[334732846,1723518645524,-500.0,0.00013972,2]
[334732847,1723518645533,-600.17,0.00013972,2]
[334732848,1723518645542,-665.7,0.00013972,2]
[334732849,1723518645551,-1139.33,0.00013972,2]
[334732850,1723518645560,-500.0,0.00013972,2]
[334732851,1723518645570,-500.0,0.00013972,2]
[334732852,1723518645579,-500.0,0.00013972,2]
[334732853,1723518645588,-2767.2,0.00013972,2]
[334732854,1723518645597,-895.92,0.00013972,2]
[334732855,1723518645606,-221.952497,0.00013972,2]
[334732856,1723518645616,-1099.57,0.00013972,2]
[334732857,1723518645625,-221.952497,0.00013972,2]
[334732858,1723518645635,-610.16,0.00013972,2]
[334732859,1723518645645,-688.92,0.00013972,2]
[334732860,1723518645654,-1055.07,0.00013972,2]
[334732861,1723518645665,-877.87,0.00013972,2]
[334732862,1723518645676,-235.782545,0.00013972,2]
[334732863,1723518645686,-1783.22,0.00013972,2]
[334732864,1723518645697,-235.782545,0.00013972,2]
[334732865,1723518645708,-863.4,0.00013972,2]
[334732866,1723518645719,-500.0,0.00013972,2]
[334732867,1723518645730,-586.8,0.00013972,2]
[334732868,1723518645741,-500.0,0.00013972,2]
[334732869,1723518645752,-500.0,0.00013972,2]
[334732870,1723518645763,-151.0,0.00013972,2]
[334732871,1723518645774,-874.19,0.00013972,2]
[334732872,1723518645785,-928.73,0.00013972,2]
[334732873,1723518645795,-500.0,0.00013972,2]
[334732874,1723518645809,-500.0,0.00013972,2]
[334732875,1723518645820,-6358.93,0.00013972,2]
[334732876,1723518645831,-500.0,0.00013972,2]
[334732877,1723518645842,-1091.1,0.00013972,2]
[334732878,1723518645851,-500.0,0.00013972,2]
[334732879,1723518645862,-151.0,0.00013972,2]
[334732880,1723518645872,-500.0,0.00013972,2]
[334732881,1723518645883,-3354.49,0.00013972,2]
[334732882,1723518645893,-359.765493,0.00013972,2]
[334732883,1723518645904,-789.35,0.00013972,2]
[334732884,1723518645914,-500.0,0.00013972,2]
[334732885,1723518645924,-500.0,0.00013972,2]
[334732886,1723518645934,-359.765493,0.00013972,2]
[334732887,1723518645943,-500.0,0.00013972,2]
[334732888,1723518645954,-1002.58,0.00013972,2]
[334732889,1723518645964,-500.0,0.00013972,2]
[334732890,1723518645975,-152.315008,0.00013972,2]
[334732891,1723518645999,-500.0,0.00013972,2]
[334732892,1723518646009,-500.0,0.00013972,2]
[334732893,1723518646019,-151.0,0.00013972,2]
[334732894,1723518646029,-1244.37,0.00013972,2]
[334732895,1723518646038,-3169.96,0.00013972,2]
[334732896,1723518646048,-716.0,0.00013972,2]
[334732897,1723518646058,-874.27,0.00013972,2]
[334732898,1723518646068,-912.65,0.00013972,2]
[334732899,1723518646077,-637.46,0.00013972,2]
[334732900,1723518646087,-500.0,0.00013972,2]
[334732902,1723518646097,-515.75,0.00013972,2]
[334732903,1723518646106,-500.0,0.00013972,2]
[334732904,1723518646116,-500.0,0.00013972,2]
[334732905,1723518646125,-1656.7,0.00013972,2]
[334732906,1723518646135,-500.0,0.00013972,2]
[334732907,1723518646144,-500.0,0.00013972,2]
[334732908,1723518646157,-500.0,0.00013972,2]
[334732909,1723518646167,-151.0,0.00013972,2]
[334732910,1723518646177,-500.0,0.00013972,2]
[334732911,1723518646187,-355.27328709,0.00013972,2]
[334732912,1723518646198,-500.0,0.00013972,2]
[334732913,1723518646209,-500.0,0.00013972,2]
[334732914,1723518646219,-1134.98,0.00013972,2]
[334732915,1723518646229,-1089.16,0.00013972,2]
[334732916,1723518646239,-177.451856,0.00013972,2]
[334732917,1723518646248,-177.451856,0.00013972,2]
[334732918,1723518646258,-651.3,0.00013972,2]
[334732919,1723518646267,-500.0,0.00013972,2]
[334732920,1723518646276,-680.92,0.00013972,2]
[334732921,1723518646286,-361.01493,0.00013972,2]
[334732922,1723518646295,-1274.67,0.00013972,2]
[334732923,1723518646304,-500.0,0.00013972,2]
[334732924,1723518646314,-500.0,0.00013972,2]
[334732925,1723518646323,-361.01493,0.00013972,2]
[334732926,1723518646333,-500.0,0.00013972,2]
[334732927,1723518646342,-1290.78,0.00013972,2]
[334732928,1723518646352,-3091.18,0.00013972,2]
[334732929,1723518646361,-520.71,0.00013972,2]
[334732930,1723518646371,-514.22688011,0.00013972,2]
[334732931,1723518646381,-500.0,0.00013972,2]
[334732932,1723518646391,-1194.25,0.00013972,2]
[334732933,1723518646400,-151.0,0.00013972,2]
[334732934,1723518646410,-151.0,0.00013972,2]
[334732935,1723518646419,-500.0,0.00013972,2]
[334732936,1723518646429,-500.0,0.00013972,2]
[334732938,1723518646438,-500.0,0.00013972,2]
[334732939,1723518646448,-500.0,0.00013972,2]
[334732941,1723518646457,-999.977613,0.00013972,2]
[334732943,1723518646467,-500.0,0.00013972,2]
[334732945,1723518646487,-411.93110367,0.00013972,2]
[334732946,1723518646496,-775.19,0.00013972,2]
[334732947,1723518646506,-999.977613,0.00013972,2]
[334732948,1723518646517,-726.63,0.00013972,2]
[334732950,1723518646526,-1188.46,0.00013972,2]
[334732952,1723518646535,-151.0,0.00013972,2]
[334732954,1723518646545,-433.094417,0.00013972,2]
[334732956,1723518646554,-930.37,0.00013972,2]
[334732958,1723518646563,-1142.18,0.00013972,2]
[334732959,1723518646572,-433.094417,0.00013972,2]
[334732960,1723518646581,-500.0,0.00013972,2]
[334732962,1723518646590,-500.0,0.00013972,2]
[334732964,1723518646600,-500.0,0.00013972,2]
[334732966,1723518646609,-500.0,0.00013972,2]
[334732968,1723518646618,-500.0,0.00013972,2]
[334732970,1723518646627,-821.39,0.00013972,2]
[334732972,1723518646636,-1871.97,0.00013972,2]
[334732974,1723518646646,-1244.73,0.00013972,2]
[334732976,1723518646655,-1485.27,0.00013972,2]
[334732978,1723518646664,-500.0,0.00013972,2]
[334732980,1723518646674,-602.22080301,0.00013972,2]
[334732982,1723518646683,-500.0,0.00013972,2]
[334732984,1723518646692,-500.0,0.00013972,2]
[334732986,1723518646701,-658.34,0.00013972,2]
[334732988,1723518646711,-895.92,0.00013972,2]
[334732990,1723518646721,-151.0,0.00013972,2]
[334732992,1723518646744,-677.1,0.00013972,2]
[334732994,1723518646754,-6011.51,0.00013972,2]
[334732995,1723518646763,-673.86,0.00013972,2]
[334732997,1723518646773,-812.49,0.00013972,2]
[334732999,1723518646783,-151.0,0.00013972,2]
[334733001,1723518646793,-574.847884,0.00013972,2]
[334733003,1723518646803,-500.0,0.00013972,2]
[334733005,1723518646813,-574.847884,0.00013972,2]
[334733006,1723518646823,-500.0,0.00013972,2]
[334733008,1723518646833,-507.7455186,0.00013972,2]
[334733010,1723518646843,-500.95482715,0.00013972,2]
[334733011,1723518646855,-500.0,0.00013972,2]
[334733012,1723518646865,-151.0,0.00013972,2]
[334733013,1723518646876,-839.67,0.00013972,2]
[334733014,1723518646886,-720.332363,0.00013972,2]
[334733015,1723518646896,-572.46,0.00013972,2]
[334733016,1723518646906,-720.332363,0.00013972,2]
[334733017,1723518646916,-152.972169,0.00013972,2]
[334733018,1723518646927,-500.0,0.00013972,2]
[334733019,1723518646938,-1171.26,0.00013972,2]
[334733020,1723518646948,-500.0,0.00013972,2]
[334733021,1723518646958,-579.86,0.00013972,2]
[334733022,1723518646969,-500.0,0.00013972,2]
[334733023,1723518646992,-593.57865587,0.00013972,2]
[334733024,1723518647002,-174.731474,0.00013972,2]
[334733025,1723518647012,-500.0,0.00013972,2]
[334733026,1723518647021,-174.731474,0.00013972,2]
[334733027,1723518647030,-571.18,0.00013972,2]
[334733028,1723518647040,-6776.99,0.00013972,2]
[334733029,1723518647049,-605.11265353,0.00013972,2]
[334733030,1723518647059,-2245.36,0.00013972,2]
[334733031,1723518647069,-2209.08,0.00014,2]
[334733032,1723518647079,-555.83,0.00014246,2]
[334733033,1723518647090,-500.0,0.00014246,2]
[334733034,1723518647100,-625.05784409,0.00014246,2]
[334733035,1723518647109,-500.0,0.00014246,2]
[334733036,1723518647119,-714.28,0.00014246,2]
[334733037,1723518647128,-500.0,0.00014246,2]
[334733038,1723518647137,-500.0,0.00014246,2]
[334733039,1723518647147,-500.0,0.00014246,2]
[334733040,1723518647156,-500.0,0.00014246,2]
[334733041,1723518647166,-500.0,0.00014246,2]
[334733042,1723518647180,-798.52,0.00014246,2]
[334733043,1723518647190,-518.82,0.00014246,2]
[334733044,1723518647200,-500.0,0.00014246,2]
[334733045,1723518647209,-500.0,0.00014246,2]
[334733046,1723518647220,-500.0,0.00014246,2]
[334733047,1723518647357,-500.0,0.00014246,2]
[334733048,1723518647368,-500.0,0.00014246,2]
[334733049,1723518647377,-151.0,0.00014246,2]
[334733050,1723518647387,-500.0,0.00014246,2]
[334733051,1723518647397,-227.552601,0.00014246,2]
[334733052,1723518647407,-500.0,0.00014246,2]
[334733053,1723518647417,-151.0,0.00014246,2]
[334733054,1723518647427,-500.0,0.00014246,2]
[334733055,1723518647436,-151.0,0.00014246,2]
[334733056,1723518647447,-500.0,0.00014246,2]
[334733057,1723518647456,-229.205572,0.00014246,2]
[334733058,1723518647466,-500.0,0.00014246,2]
[334733059,1723518647487,-500.0,0.00014246,2]
[334733060,1723518647502,-229.205572,0.00014246,2]
[334733061,1723518647512,-619.46,0.00014246,2]
[334733062,1723518647521,-151.0,0.00014246,2]
[334733063,1723518647531,-568.01,0.00014246,2]
[334733064,1723518647540,-500.0,0.00014246,2]
[334733065,1723518647550,-564.49,0.00014246,2]
[334733066,1723518647559,-500.0,0.00014246,2]
[334733067,1723518647570,-500.0,0.00014246,2]
[334733068,1723518647580,-500.0,0.00014246,2]
[334733069,1723518647589,-500.0,0.00014246,2]
[334733070,1723518647598,-507.85,0.00014246,2]
[334733071,1723518647607,-500.0,0.00014246,2]
[334733072,1723518647616,-1705.04,0.00014246,2]
[334733073,1723518647625,-500.0,0.00014246,2]
[334733074,1723518647635,-500.0,0.00014246,2]
[334733075,1723518647644,-500.0,0.00014246,2]
[334733076,1723518647654,-854.94,0.00014246,2]
[334733077,1723518647664,-500.0,0.00014246,2]
[334733078,1723518647674,-500.0,0.00014246,2]
[334733079,1723518647684,-500.0,0.00014246,2]
[334733080,1723518647694,-500.0,0.00014246,2]
[334733081,1723518647703,-608.07,0.00014246,2]
[334733082,1723518647713,-500.0,0.00014246,2]
[334733083,1723518647724,-1301.79,0.00014246,2]
[334733084,1723518647744,-500.0,0.00014246,2]
[334733085,1723518647754,-500.0,0.00014246,2]
[334733086,1723518647764,-500.0,0.00014246,2]
[334733087,1723518647774,-509.77,0.00014246,2]
[334733088,1723518647784,-500.0,0.00014246,2]
[334733089,1723518647794,-500.0,0.00014246,2]
[334733090,1723518647804,-622.01832579,0.00014246,2]
[334733091,1723518647813,-500.0,0.00014246,2]
[334733092,1723518647823,-371.36827,0.00014246,2]
[334733093,1723518647832,-371.36827,0.00014246,2]
[334733094,1723518647842,-500.0,0.00014246,2]
[334733095,1723518647852,-500.0,0.00014246,2]
[334733096,1723518647861,-151.0,0.00014246,2]
[334733097,1723518647872,-151.0,0.00014246,2]
[334733098,1723518647881,-500.0,0.00014246,2]
[334733099,1723518647890,-600.17,0.00014246,2]
[334733100,1723518647901,-665.7,0.00014246,2]
[334733101,1723518647911,-1139.33,0.00014246,2]
[334733102,1723518647920,-500.0,0.00014246,2]
[334733103,1723518647930,-509.28746645,0.00014246,2]
[334733104,1723518647940,-500.0,0.00014246,2]
[334733105,1723518647949,-2767.2,0.00014246,2]
[334733106,1723518647959,-895.92,0.00014246,2]
[334733107,1723518647969,-221.952497,0.00014246,2]
[334733108,1723518647989,-1099.57,0.00014246,2]
[334733109,1723518647998,-221.952497,0.00014246,2]
[334733110,1723518648008,-610.16,0.00014246,2]
[334733111,1723518648017,-688.92,0.00014246,2]
[334733112,1723518648026,-1055.07,0.00014246,2]
[334733113,1723518648037,-877.87,0.00014246,2]
[334733114,1723518648047,-235.782545,0.00014246,2]
[334733115,1723518648056,-1783.22,0.00014246,2]
[334733116,1723518648066,-235.782545,0.00014246,2]
[334733117,1723518648076,-863.4,0.00014246,2]
[334733118,1723518648086,-359.4979327,0.00014246,2]
[334733119,1723518648095,-586.8,0.00014246,2]
[334733120,1723518648105,-500.0,0.00014246,2]
[334733121,1723518648114,-500.0,0.00014246,2]
[334733122,1723518648125,-151.0,0.00014246,2]
[334733123,1723518648135,-874.19,0.00014246,2]
[334733124,1723518648144,-928.73,0.00014246,2]
[334733125,1723518648157,-500.0,0.00014246,2]
[334733126,1723518648167,-500.0,0.00014246,2]
[334733127,1723518648177,-6358.93,0.00014246,2]
[334733128,1723518648187,-500.0,0.00014246,2]
[334733129,1723518648200,-1091.1,0.00014246,2]
[334733130,1723518648210,-500.0,0.00014246,2]
[334733131,1723518648220,-500.0,0.00014246,2]
[334733132,1723518648241,-3354.49,0.00014246,2]
[334733133,1723518648251,-359.765493,0.00014246,2]
[334733134,1723518648261,-789.35,0.00014246,2]
[334733135,1723518648271,-500.0,0.00014246,2]
[334733136,1723518648281,-359.765493,0.00014246,2]
[334733137,1723518648291,-500.0,0.00014246,2]
[334733138,1723518648301,-1002.58,0.00014246,2]
[334733139,1723518648310,-500.0,0.00014246,2]
[334733140,1723518648320,-184.67368875,0.00014246,2]
[334733141,1723518648331,-500.0,0.00014246,2]
[334733142,1723518648340,-1244.37,0.00014246,2]
[334733143,1723518648350,-3169.96,0.00014246,2]
[334733144,1723518648360,-716.0,0.00014246,2]
[334733145,1723518648369,-874.27,0.00014246,2]
[334733146,1723518648379,-912.65,0.00014246,2]
[334733147,1723518648388,-637.46,0.00014246,2]
[334733148,1723518648398,-500.0,0.00014246,2]
[334733149,1723518648407,-515.75,0.00014246,2]
[334733150,1723518648417,-500.0,0.00014246,2]
[334733151,1723518648426,-419.71316734,0.00014246,2]
[334733152,1723518648435,-1656.7,0.00014246,2]
[334733153,1723518648445,-500.0,0.00014246,2]
[334733154,1723518648455,-500.0,0.00014246,2]
[334733155,1723518648464,-500.0,0.00014246,2]
[334733156,1723518648476,-153.900139,0.00014246,2]
[334733157,1723518648489,-532.54148668,0.00014246,2]
[334733158,1723518648498,-500.0,0.00014246,2]
[334733159,1723518648507,-1134.98,0.00014246,2]
[334733160,1723518648517,-1089.16,0.00014246,2]
[334733161,1723518648527,-177.451856,0.00014246,2]
[334733162,1723518648536,-177.451856,0.00014246,2]
[334733163,1723518648546,-651.3,0.00014246,2]
[334733164,1723518648555,-500.0,0.00014246,2]
[334733165,1723518648565,-680.92,0.00014246,2]
[334733166,1723518648574,-361.01493,0.00014246,2]
[334733167,1723518648583,-1274.67,0.00014246,2]
[334733168,1723518648593,-500.0,0.00014246,2]
[334733169,1723518648602,-500.0,0.00014246,2]
[334733170,1723518648611,-361.01493,0.00014246,2]
[334733171,1723518648620,-1290.78,0.00014246,2]
[334733172,1723518648630,-3091.18,0.00014246,2]
[334733173,1723518648639,-520.71,0.00014246,2]
[334733174,1723518648649,-500.0,0.00014246,2]
[334733175,1723518648658,-1194.25,0.00014246,2]
[334733176,1723518648668,-151.0,0.00014246,2]
[334733177,1723518648678,-151.0,0.00014246,2]
[334733178,1723518648688,-500.0,0.00014246,2]
[334733179,1723518648697,-500.0,0.00014246,2]
[334733180,1723518648706,-999.977613,0.00014246,2]
[334733181,1723518648715,-775.19,0.00014246,2]
[334733182,1723518648731,-999.977613,0.00014246,2]
[334733183,1723518648740,-726.63,0.00014246,2]
[334733184,1723518648750,-1188.46,0.00014246,2]
[334733185,1723518648759,-151.0,0.00014246,2]
[334733186,1723518648768,-433.094417,0.00014246,2]
[334733187,1723518648777,-930.37,0.00014246,2]
[334733188,1723518648786,-1142.18,0.00014246,2]
[334733189,1723518648795,-433.094417,0.00014246,2]
[334733190,1723518648805,-500.0,0.00014246,2]
[334733191,1723518648815,-500.0,0.00014246,2]
[334733192,1723518648824,-500.0,0.00014246,2]
[334733193,1723518648834,-821.39,0.00014246,2]
[334733194,1723518648843,-500.0,0.00014246,2]
[334733195,1723518648852,-1871.97,0.00014246,2]
[334733196,1723518648861,-1244.73,0.00014246,2]
[334733197,1723518648870,-1485.27,0.00014246,2]
[334733198,1723518648879,-500.0,0.00014246,2]
[334733199,1723518648888,-500.0,0.00014246,2]
[334733200,1723518648898,-658.34,0.00014246,2]
[334733201,1723518648908,-895.92,0.00014246,2]
[334733202,1723518648917,-151.0,0.00014246,2]
[334733203,1723518648927,-677.1,0.00014246,2]
[334733204,1723518648937,-6011.51,0.00014246,2]
[334733205,1723518648947,-673.86,0.00014246,2]
[334733206,1723518648956,-812.49,0.00014246,2]
[334733207,1723518648966,-176.635772,0.00014246,2]
[334733208,1723518648981,-574.847884,0.00014246,2]
[334733209,1723518648990,-500.0,0.00014246,2]
[334733210,1723518648999,-574.847884,0.00014246,2]
[334733211,1723518649008,-500.0,0.00014246,2]
[334733212,1723518649018,-505.0491654,0.00014246,2]
[334733213,1723518649027,-221.724446,0.00014246,2]
[334733214,1723518649036,-839.67,0.00014246,2]
[334733215,1723518649046,-720.332363,0.00014246,2]
[334733216,1723518649055,-572.46,0.00014246,2]
[334733217,1723518649064,-720.332363,0.00014246,2]
[334733218,1723518649074,-532.56160692,0.00014246,2]
[334733219,1723518649083,-1171.26,0.00014246,2]
[334733220,1723518649092,-500.0,0.00014246,2]
[334733221,1723518649102,-579.86,0.00014246,2]
[334733222,1723518649111,-500.0,0.00014246,2]
[334733223,1723518649120,-174.731474,0.00014246,2]
[334733224,1723518649131,-500.0,0.00014246,2]
[334733225,1723518649140,-174.731474,0.00014246,2]
[334733226,1723518649150,-571.18,0.00014246,2]
[334733227,1723518649163,-6776.99,0.00014246,2]
[334733228,1723518649172,-2245.36,0.00014246,2]
[334733229,1723518649182,-221.014456,0.00014247,2]
[334733230,1723518649191,-171.10527,0.00014247,2]
[334733231,1723518649202,-555.83,0.0001452,2]
[334733232,1723518649211,-500.0,0.0001452,2]
[334733233,1723518649221,-500.0,0.0001452,2]
[334733234,1723518649240,-714.28,0.0001452,2]
[334733235,1723518649251,-153.035311,0.0001452,2]
[334733236,1723518649260,-500.0,0.0001452,2]
[334733237,1723518649271,-500.0,0.0001452,2]
[334733238,1723518649280,-500.0,0.0001452,2]
[334733239,1723518649290,-500.0,0.0001452,2]
[334733240,1723518649299,-500.0,0.0001452,2]
[334733241,1723518649309,-798.52,0.0001452,2]
[334733242,1723518649319,-518.82,0.0001452,2]
[334733243,1723518649328,-500.0,0.0001452,2]
[334733244,1723518649338,-500.0,0.0001452,2]
[334733245,1723518649348,-500.0,0.0001452,2]
[334733246,1723518649357,-500.0,0.0001452,2]
[334733247,1723518649367,-500.0,0.0001452,2]
[334733248,1723518649377,-151.0,0.0001452,2]
[334733249,1723518649386,-470.64764857,0.0001452,2]
[334733250,1723518649396,-185.376156,0.0001452,2]
[334733251,1723518649406,-229.205572,0.0001452,2]
[334733252,1723518649416,-500.0,0.0001452,2]
[334733253,1723518649426,-500.0,0.0001452,2]
[334733254,1723518649436,-229.205572,0.0001452,2]
[334733255,1723518649445,-619.46,0.0001452,2]
[334733256,1723518649454,-169.134639,0.0001452,2]
[334733257,1723518649464,-568.01,0.0001452,2]
[334733258,1723518649475,-500.0,0.0001452,2]
[334733259,1723518649490,-564.49,0.0001452,2]
[334733260,1723518649499,-500.0,0.0001452,2]
[334733261,1723518649508,-500.0,0.0001452,2]
[334733262,1723518649517,-500.0,0.0001452,2]
[334733263,1723518649526,-500.0,0.0001452,2]
[334733264,1723518649536,-507.85,0.0001452,2]
[334733265,1723518649545,-500.0,0.0001452,2]
[334733266,1723518649554,-1705.04,0.0001452,2]
[334733267,1723518649564,-500.0,0.0001452,2]
[334733268,1723518649574,-500.0,0.0001452,2]
[334733269,1723518649584,-500.0,0.0001452,2]
[334733270,1723518649594,-854.94,0.0001452,2]
[334733271,1723518649604,-500.0,0.0001452,2]
[334733272,1723518649613,-462.27034166,0.0001452,2]
[334733273,1723518649623,-500.0,0.0001452,2]
[334733274,1723518649633,-500.0,0.0001452,2]
[334733275,1723518649642,-608.07,0.0001452,2]
[334733276,1723518649651,-500.0,0.0001452,2]
[334733277,1723518649661,-1301.79,0.0001452,2]
[334733278,1723518649671,-500.0,0.0001452,2]
[334733279,1723518649680,-500.0,0.0001452,2]
[334733280,1723518649690,-500.0,0.0001452,2]